[Event "Titled Tuesday Blitz November 14 Early 2023"]
[White "Jaskolka, Tomasz"]
[Black "Matveeva, Olga"]
[WhiteFideId "1170791"]
[BlackFideId "24107018"]
[WhiteElo "2557"]
[BlackElo "2375"]
[Result "1-0"]
[Round "8"]
[TimeControl "180+1"]
[Date "2023.11.14"]
[WhiteClock "0:00:05"]
[BlackClock "0:00:06"]
[Board "112"]

1. e4 {[%clk 0:03:00]}  c6 {[%clk 0:03:00]} 2. d4 {[%clk 0:02:54]}  d5 {[%clk 0:03:00]} 3. e5 {[%clk 0:02:54]}  c5 {[%clk 0:03:00]} 4. dxc5 {[%clk 0:02:54]}  e6 {[%clk 0:03:00]} 5. a3 {[%clk 0:02:54]}  Bxc5 {[%clk 0:03:00]} 6. b4 {[%clk 0:02:55]}  Bb6 {[%clk 0:02:55]} 7. Qg4 {[%clk 0:02:50]}  Ne7 {[%clk 0:02:54]} 8. Qxg7 {[%clk 0:02:37]}  Rg8 {[%clk 0:02:53]} 9. Qxh7 {[%clk 0:02:38]}  Nbc6 {[%clk 0:02:50]} 10. Nf3 {[%clk 0:02:36]}  Bd7 {[%clk 0:02:32]} 11. Bb2 {[%clk 0:02:00]}  Qc7 {[%clk 0:02:29]} 12. Nbd2 {[%clk 0:01:44]}  O-O-O {[%clk 0:02:25]} 13. Qxf7 {[%clk 0:01:42]}  Rdf8 {[%clk 0:02:23]} 14. Qh7 {[%clk 0:01:42]}  Ng6 {[%clk 0:02:17]} 15. Bb5 {[%clk 0:01:35]}  Ncxe5 {[%clk 0:02:10]} 16. Bxd7+ {[%clk 0:01:28]}  Nxd7 {[%clk 0:02:08]} 17. O-O-O {[%clk 0:01:24]}  Bxf2 {[%clk 0:02:04]} 18. Nd4 {[%clk 0:01:13]}  Bxd4 {[%clk 0:01:41]} 19. Bxd4 {[%clk 0:01:13]}  e5 {[%clk 0:01:41]} 20. Bb2 {[%clk 0:01:10]}  Nf4 {[%clk 0:01:34]} 21. g3 {[%clk 0:00:49]}  Rh8 {[%clk 0:01:21]} 22. Qe7 {[%clk 0:00:41]}  Nd3+ {[%clk 0:01:13]} 23. Kb1 {[%clk 0:00:40]}  Nf2 {[%clk 0:01:03]} 24. Nb3 {[%clk 0:00:36]}  Nxd1 {[%clk 0:01:00]} 25. Rxd1 {[%clk 0:00:36]}  Rxh2 {[%clk 0:00:59]} 26. Nc5 {[%clk 0:00:31]}  Rff2 {[%clk 0:00:39]} 27. Rxd5 {[%clk 0:00:18]}  Rd2 {[%clk 0:00:25]} 28. Bxe5 {[%clk 0:00:09]}  Rxd5 {[%clk 0:00:18]} 29. Bxc7 {[%clk 0:00:09]}  Kxc7 {[%clk 0:00:19]} 30. Ne6+ {[%clk 0:00:08]}  Kc6 {[%clk 0:00:17]} 31. Qd8 {[%clk 0:00:05]}  Rd1+ {[%clk 0:00:16]} 32. Kb2 {[%clk 0:00:05]}  Rdd2 {[%clk 0:00:16]} 33. Qc7+ {[%clk 0:00:06]}  Kb5 {[%clk 0:00:14]} 34. Qxb7+ {[%clk 0:00:05]}  Kc4 {[%clk 0:00:06]} 35. Qc6+ {[%clk 0:00:05]} 1-0


[Site "https://www.chess.com"]

[Event "Titled Tuesday Blitz November 14 Early 2023"]
[White "Mestnikov, Aisen"]
[Black "Silva Lucena, Cristian"]
[WhiteFideId "34130117"]
[BlackFideId "2232588"]
[WhiteElo "2368"]
[BlackElo "2537"]
[Result "1-0"]
[Round "8"]
[TimeControl "180+1"]
[Date "2023.11.14"]
[WhiteClock "0:01:23"]
[BlackClock "0:01:27"]
[Board "114"]

1. d4 {[%clk 0:02:58]}  d5 {[%clk 0:02:59]} 2. Nf3 {[%clk 0:02:58]}  Nf6 {[%clk 0:02:58]} 3. c4 {[%clk 0:02:59]}  dxc4 {[%clk 0:02:59]} 4. Nc3 {[%clk 0:02:59]}  a6 {[%clk 0:02:59]} 5. a4 {[%clk 0:02:59]}  c5 {[%clk 0:02:59]} 6. d5 {[%clk 0:02:58]}  e6 {[%clk 0:02:59]} 7. e4 {[%clk 0:02:58]}  exd5 {[%clk 0:02:58]} 8. exd5 {[%clk 0:02:55]}  Bg4 {[%clk 0:02:53]} 9. Bxc4 {[%clk 0:02:55]}  Nbd7 {[%clk 0:02:53]} 10. O-O {[%clk 0:02:51]}  Bd6 {[%clk 0:02:45]} 11. Re1+ {[%clk 0:02:40]}  Kf8 {[%clk 0:02:45]} 12. h3 {[%clk 0:02:26]}  Bh5 {[%clk 0:02:42]} 13. Be2 {[%clk 0:02:12]}  Qc7 {[%clk 0:02:40]} 14. Nd2 {[%clk 0:02:11]}  Bg6 {[%clk 0:02:39]} 15. Nc4 {[%clk 0:02:10]}  h6 {[%clk 0:02:38]} 16. Nxd6 {[%clk 0:02:08]}  Qxd6 {[%clk 0:02:38]} 17. g3 {[%clk 0:02:00]}  Kg8 {[%clk 0:02:29]} 18. Bf4 {[%clk 0:02:00]}  Qb6 {[%clk 0:02:30]} 19. Qd2 {[%clk 0:01:56]}  Kh7 {[%clk 0:02:27]} 20. Bf3 {[%clk 0:01:49]}  Rhe8 {[%clk 0:02:22]} 21. a5 {[%clk 0:01:33]}  Qb4 {[%clk 0:02:19]} 22. Rxe8 {[%clk 0:01:23]}  Rxe8 {[%clk 0:02:15]} 23. Ra4 {[%clk 0:01:23]}  Qb3 {[%clk 0:01:27]} 24. Bd1 {[%clk 0:01:23]} 1-0


[Site "https://www.chess.com"]

[Event "Titled Tuesday Blitz November 14 Early 2023"]
[White "Tifferet, Shaked"]
[Black "Degtiarev, Evgeny"]
[WhiteFideId "2811529"]
[BlackFideId "4149610"]
[WhiteElo "2523"]
[BlackElo "2362"]
[Result "0-1"]
[Round "8"]
[TimeControl "180+1"]
[Date "2023.11.14"]
[WhiteClock "0:01:40"]
[BlackClock "0:00:15"]
[Board "115"]

1. e4 {[%clk 0:03:00]}  e5 {[%clk 0:02:59]} 2. Nf3 {[%clk 0:03:00]}  Nc6 {[%clk 0:02:59]} 3. Nc3 {[%clk 0:03:01]}  Nf6 {[%clk 0:02:59]} 4. Be2 {[%clk 0:03:01]}  d5 {[%clk 0:02:31]} 5. exd5 {[%clk 0:03:02]}  Nxd5 {[%clk 0:02:31]} 6. O-O {[%clk 0:03:01]}  Nxc3 {[%clk 0:02:31]} 7. bxc3 {[%clk 0:03:02]}  e4 {[%clk 0:02:32]} 8. Nd4 {[%clk 0:03:02]}  Nxd4 {[%clk 0:02:28]} 9. cxd4 {[%clk 0:03:03]}  Qxd4 {[%clk 0:02:28]} 10. c3 {[%clk 0:03:03]}  Qd5 {[%clk 0:02:26]} 11. d4 {[%clk 0:03:04]}  exd3 {[%clk 0:02:24]} 12. c4 {[%clk 0:03:04]}  Qd4 {[%clk 0:02:00]} 13. Re1 {[%clk 0:03:02]}  Be7 {[%clk 0:01:34]} 14. Bf3 {[%clk 0:02:52]}  Be6 {[%clk 0:01:06]} 15. Bxb7 {[%clk 0:02:34]}  Rb8 {[%clk 0:00:58]} 16. Rb1 {[%clk 0:02:31]}  O-O {[%clk 0:00:54]} 17. Be3 {[%clk 0:02:32]}  Qxc4 {[%clk 0:00:54]} 18. Bxa7 {[%clk 0:02:32]}  Rbd8 {[%clk 0:00:48]} 19. Qd2 {[%clk 0:02:20]}  Qc2 {[%clk 0:00:29]} 20. Qxc2 {[%clk 0:02:16]}  dxc2 {[%clk 0:00:30]} 21. Rbc1 {[%clk 0:02:17]}  Bb4 {[%clk 0:00:17]} 22. Rf1 {[%clk 0:02:09]}  Bf5 {[%clk 0:00:16]} 23. Be3 {[%clk 0:02:06]}  Ba3 {[%clk 0:00:14]} 24. Rce1 {[%clk 0:02:04]}  Bd3 {[%clk 0:00:13]} 25. f3 {[%clk 0:01:59]}  Bxf1 {[%clk 0:00:13]} 26. Kxf1 {[%clk 0:02:00]}  Rd1 {[%clk 0:00:12]} 27. Ke2 {[%clk 0:01:56]}  Rxe1+ {[%clk 0:00:11]} 28. Kxe1 {[%clk 0:01:57]}  Re8 {[%clk 0:00:11]} 29. Be4 {[%clk 0:01:55]}  c1=Q+ {[%clk 0:00:10]} 30. Bxc1 {[%clk 0:01:54]}  Bxc1 {[%clk 0:00:11]} 31. Kd1 {[%clk 0:01:55]}  Bf4 {[%clk 0:00:11]} 32. a4 {[%clk 0:01:56]}  Bxh2 {[%clk 0:00:11]} 33. a5 {[%clk 0:01:56]}  Bg1 {[%clk 0:00:11]} 34. Kc2 {[%clk 0:01:56]}  Ba7 {[%clk 0:00:12]} 35. a6 {[%clk 0:01:55]}  Re7 {[%clk 0:00:13]} 36. Kc3 {[%clk 0:01:54]}  g6 {[%clk 0:00:14]} 37. Kc4 {[%clk 0:01:55]}  Kg7 {[%clk 0:00:14]} 38. Kb5 {[%clk 0:01:55]}  Kf6 {[%clk 0:00:13]} 39. Kc6 {[%clk 0:01:55]}  Ke5 {[%clk 0:00:13]} 40. Bc2 {[%clk 0:01:50]}  f5 {[%clk 0:00:13]} 41. Bb3 {[%clk 0:01:40]}  h5 {[%clk 0:00:13]} 42. Kb7 {[%clk 0:01:39]}  c5+ {[%clk 0:00:12]} 43. Kc6 {[%clk 0:01:40]}  h4 {[%clk 0:00:12]} 44. Bc4 {[%clk 0:01:38]}  g5 {[%clk 0:00:13]} 45. Bf1 {[%clk 0:01:38]}  g4 {[%clk 0:00:13]} 46. fxg4 {[%clk 0:01:38]}  fxg4 {[%clk 0:00:13]} 47. Kb5 {[%clk 0:01:38]}  Kf4 {[%clk 0:00:14]} 48. Bc4 {[%clk 0:01:37]}  h3 {[%clk 0:00:14]} 49. gxh3 {[%clk 0:01:37]}  gxh3 {[%clk 0:00:14]} 50. Bd5 {[%clk 0:01:37]}  h2 {[%clk 0:00:15]} 51. Kc6 {[%clk 0:01:37]}  Kg3 {[%clk 0:00:15]} 52. Kd6 {[%clk 0:01:34]}  Rh7 {[%clk 0:00:14]} 53. Be4 {[%clk 0:01:34]}  h1=Q {[%clk 0:00:14]} 54. Bxh1 {[%clk 0:01:33]}  Rxh1 {[%clk 0:00:14]} 55. Kd5 {[%clk 0:01:34]}  Rh6 {[%clk 0:00:13]} 56. Kc4 {[%clk 0:01:34]}  Rxa6 {[%clk 0:00:14]} 57. Kb5 {[%clk 0:01:35]}  Re6 {[%clk 0:00:14]} 58. Kc4 {[%clk 0:01:36]}  Kf4 {[%clk 0:00:14]} 59. Kb5 {[%clk 0:01:37]}  Ke5 {[%clk 0:00:14]} 60. Kc4 {[%clk 0:01:38]}  Rd6 {[%clk 0:00:14]} 61. Kb5 {[%clk 0:01:38]}  c4 {[%clk 0:00:14]} 62. Kxc4 {[%clk 0:01:39]}  Rd4+ {[%clk 0:00:14]} 63. Kb5 {[%clk 0:01:40]}  Bb8 {[%clk 0:00:15]} 64. Kc6 {[%clk 0:01:41]}  Bd6 {[%clk 0:00:15]} 65. Kb5 {[%clk 0:01:41]}  Kd5 {[%clk 0:00:15]} 66. Kb6 {[%clk 0:01:40]}  Rb4+ {[%clk 0:00:15]} 67. Ka7 {[%clk 0:01:40]}  Kc6 {[%clk 0:00:15]} 68. Ka8 {[%clk 0:01:40]}  Ra4# {[%clk 0:00:15]} 0-1


[Site "https://www.chess.com"]

[Event "Titled Tuesday Blitz November 14 Early 2023"]
[White "Manukian, Artak"]
[Black "Garrido, Denis"]
[WhiteFideId "13301373"]
[BlackFideId "601217"]
[WhiteElo "2522"]
[BlackElo "2358"]
[Result "1-0"]
[Round "8"]
[TimeControl "180+1"]
[Date "2023.11.14"]
[WhiteClock "0:01:21"]
[BlackClock "0:00:14"]
[Board "116"]

1. e4 {[%clk 0:03:00]}  c6 {[%clk 0:02:59]} 2. d4 {[%clk 0:03:00]}  d5 {[%clk 0:03:00]} 3. e5 {[%clk 0:02:58]}  Bf5 {[%clk 0:03:00]} 4. c4 {[%clk 0:02:54]}  e6 {[%clk 0:02:59]} 5. Nc3 {[%clk 0:02:54]}  Bb4 {[%clk 0:02:59]} 6. Qb3 {[%clk 0:02:53]}  Qb6 {[%clk 0:02:52]} 7. c5 {[%clk 0:02:50]}  Qa5 {[%clk 0:02:47]} 8. Bd2 {[%clk 0:02:48]}  Nd7 {[%clk 0:02:44]} 9. a3 {[%clk 0:02:48]}  Bxc3 {[%clk 0:02:44]} 10. Bxc3 {[%clk 0:02:49]}  Qc7 {[%clk 0:02:45]} 11. Ne2 {[%clk 0:02:47]}  Ne7 {[%clk 0:02:42]} 12. Ng3 {[%clk 0:02:44]}  Bg6 {[%clk 0:02:30]} 13. h4 {[%clk 0:02:41]}  h6 {[%clk 0:02:30]} 14. h5 {[%clk 0:02:40]}  Bh7 {[%clk 0:02:30]} 15. Qd1 {[%clk 0:02:40]}  O-O {[%clk 0:02:30]} 16. Bd3 {[%clk 0:02:39]}  b6 {[%clk 0:02:24]} 17. b4 {[%clk 0:02:35]}  bxc5 {[%clk 0:02:22]} 18. bxc5 {[%clk 0:02:34]}  Rab8 {[%clk 0:02:22]} 19. Bxh7+ {[%clk 0:02:31]}  Kxh7 {[%clk 0:02:22]} 20. O-O {[%clk 0:02:32]}  f6 {[%clk 0:02:13]} 21. f4 {[%clk 0:02:29]}  Rf7 {[%clk 0:02:11]} 22. Qd3+ {[%clk 0:02:22]}  f5 {[%clk 0:02:08]} 23. Rab1 {[%clk 0:02:15]}  Rg8 {[%clk 0:02:06]} 24. Kf2 {[%clk 0:02:12]}  g6 {[%clk 0:02:06]} 25. Rh1 {[%clk 0:02:09]}  g5 {[%clk 0:02:05]} 26. Ne2 {[%clk 0:02:09]}  gxf4 {[%clk 0:02:04]} 27. Nxf4 {[%clk 0:02:08]}  Rg4 {[%clk 0:02:05]} 28. g3 {[%clk 0:02:07]}  Nf8 {[%clk 0:02:01]} 29. Rh3 {[%clk 0:02:06]}  Rfg7 {[%clk 0:01:54]} 30. Qa6 {[%clk 0:02:04]}  Ng8 {[%clk 0:01:46]} 31. Be1 {[%clk 0:01:53]}  Rxf4+ {[%clk 0:01:35]} 32. gxf4 {[%clk 0:01:51]}  Nf6 {[%clk 0:01:36]} 33. Ba5 {[%clk 0:01:36]}  Ne4+ {[%clk 0:01:34]} 34. Kf3 {[%clk 0:01:36]}  Qf7 {[%clk 0:01:29]} 35. Qc8 {[%clk 0:01:32]}  Kh8 {[%clk 0:00:39]} 36. Rb8 {[%clk 0:01:30]}  Rg8 {[%clk 0:00:39]} 37. Rb7 {[%clk 0:01:25]}  Rg3+ {[%clk 0:00:19]} 38. Rxg3 {[%clk 0:01:21]}  Qxh5+ {[%clk 0:00:14]} 39. Ke3 {[%clk 0:01:21]} 1-0


[Site "https://www.chess.com"]

[Event "Titled Tuesday Blitz November 14 Early 2023"]
[White "Pinto, Daniel"]
[Black "Zaksaite, Salomeja"]
[WhiteFideId "3303144"]
[BlackFideId "12801496"]
[WhiteElo "2516"]
[BlackElo "2345"]
[Result "0-1"]
[Round "8"]
[TimeControl "180+1"]
[Date "2023.11.14"]
[WhiteClock "0:00:00"]
[BlackClock "0:00:11"]
[Board "117"]

1. Nf3 {[%clk 0:02:57]}  Nf6 {[%clk 0:03:00]} 2. g3 {[%clk 0:02:57]}  g6 {[%clk 0:03:01]} 3. Bg2 {[%clk 0:02:57]}  Bg7 {[%clk 0:03:02]} 4. O-O {[%clk 0:02:57]}  d5 {[%clk 0:03:01]} 5. c4 {[%clk 0:02:57]}  O-O {[%clk 0:02:58]} 6. d4 {[%clk 0:02:56]}  dxc4 {[%clk 0:02:55]} 7. Na3 {[%clk 0:02:56]}  Nc6 {[%clk 0:02:56]} 8. Nxc4 {[%clk 0:02:55]}  Be6 {[%clk 0:02:56]} 9. b3 {[%clk 0:02:51]}  Bd5 {[%clk 0:02:56]} 10. Bb2 {[%clk 0:02:51]}  a5 {[%clk 0:02:56]} 11. a4 {[%clk 0:02:43]}  Nb4 {[%clk 0:02:55]} 12. Rc1 {[%clk 0:02:42]}  b6 {[%clk 0:02:50]} 13. Re1 {[%clk 0:02:35]}  Na2 {[%clk 0:02:25]} 14. Ra1 {[%clk 0:02:22]}  Nb4 {[%clk 0:02:24]} 15. Ne3 {[%clk 0:01:53]}  Be4 {[%clk 0:02:16]} 16. Rc1 {[%clk 0:01:22]}  Bh6 {[%clk 0:02:00]} 17. Nd2 {[%clk 0:01:05]}  Bxg2 {[%clk 0:01:55]} 18. Nxg2 {[%clk 0:01:03]}  Qd5 {[%clk 0:01:19]} 19. Rc4 {[%clk 0:01:02]}  c6 {[%clk 0:00:52]} 20. e4 {[%clk 0:00:46]}  Qd7 {[%clk 0:00:49]} 21. Nf3 {[%clk 0:00:41]}  b5 {[%clk 0:00:43]} 22. Rc5 {[%clk 0:00:33]}  bxa4 {[%clk 0:00:36]} 23. bxa4 {[%clk 0:00:34]}  Rfb8 {[%clk 0:00:31]} 24. Ba3 {[%clk 0:00:28]}  Bf8 {[%clk 0:00:24]} 25. Ne5 {[%clk 0:00:25]}  Qb7 {[%clk 0:00:22]} 26. Bxb4 {[%clk 0:00:22]}  axb4 {[%clk 0:00:22]} 27. Nxc6 {[%clk 0:00:17]}  Rc8 {[%clk 0:00:22]} 28. d5 {[%clk 0:00:17]}  e6 {[%clk 0:00:22]} 29. Rb5 {[%clk 0:00:18]}  Qa6 {[%clk 0:00:18]} 30. Nxb4 {[%clk 0:00:11]}  Qxa4 {[%clk 0:00:19]} 31. Qxa4 {[%clk 0:00:11]}  Rxa4 {[%clk 0:00:19]} 32. Nc6 {[%clk 0:00:05]}  Nxe4 {[%clk 0:00:18]} 33. Ra5 {[%clk 0:00:03]}  Rxa5 {[%clk 0:00:17]} 34. Nxa5 {[%clk 0:00:04]}  exd5 {[%clk 0:00:15]} 35. Nb3 {[%clk 0:00:03]}  Rc2 {[%clk 0:00:13]} 36. Rd1 {[%clk 0:00:01]}  Nxf2 {[%clk 0:00:11]} 37. Rxd5 {[%clk 0:00:01]}  Nh3+ {[%clk 0:00:12]} 38. Kf1 {[%clk 0:00:00]}  Rf2+ {[%clk 0:00:11]} 0-1


[Site "https://www.chess.com"]

[Event "Titled Tuesday Blitz November 14 Early 2023"]
[White "Lehtosaari, Mauri"]
[Black "Zivic, Dragan"]
[WhiteFideId "501999"]
[BlackFideId "904740"]
[WhiteElo "2513"]
[BlackElo "2340"]
[Result "1-0"]
[Round "8"]
[TimeControl "180+1"]
[Date "2023.11.14"]
[WhiteClock "0:01:25"]
[BlackClock "0:00:57"]
[Board "118"]

1. d4 {[%clk 0:02:57]}  Nf6 {[%clk 0:02:57]} 2. Nf3 {[%clk 0:02:53]}  e6 {[%clk 0:02:56]} 3. Bg5 {[%clk 0:02:53]}  d5 {[%clk 0:02:55]} 4. Nbd2 {[%clk 0:02:53]}  c5 {[%clk 0:02:55]} 5. e3 {[%clk 0:02:53]}  Nc6 {[%clk 0:02:55]} 6. c3 {[%clk 0:02:53]}  Bd6 {[%clk 0:02:55]} 7. Bd3 {[%clk 0:02:50]}  h6 {[%clk 0:02:54]} 8. Bh4 {[%clk 0:02:49]}  O-O {[%clk 0:02:43]} 9. Bg3 {[%clk 0:02:42]}  Re8 {[%clk 0:02:41]} 10. Ne5 {[%clk 0:02:37]}  Qc7 {[%clk 0:02:32]} 11. f4 {[%clk 0:02:35]}  b6 {[%clk 0:02:14]} 12. O-O {[%clk 0:02:32]}  Bb7 {[%clk 0:02:09]} 13. Bh4 {[%clk 0:02:04]}  Nd7 {[%clk 0:01:37]} 14. Qh5 {[%clk 0:01:56]}  Ndxe5 {[%clk 0:01:32]} 15. fxe5 {[%clk 0:01:55]}  Bf8 {[%clk 0:01:31]} 16. Rxf7 {[%clk 0:01:48]}  Qxf7 {[%clk 0:01:22]} 17. Bh7+ {[%clk 0:01:47]}  Kxh7 {[%clk 0:01:15]} 18. Qxf7 {[%clk 0:01:47]}  Be7 {[%clk 0:00:57]} 19. Bf6 {[%clk 0:01:25]} 1-0


[Site "https://www.chess.com"]

[Event "Titled Tuesday Blitz November 14 Early 2023"]
[White "VOneChess"]
[Black "Rietze, Clemens, Dr."]
[BlackFideId "24620351"]
[WhiteElo "2342"]
[BlackElo "2512"]
[Result "1-0"]
[Round "8"]
[TimeControl "180+1"]
[Date "2023.11.14"]
[WhiteClock "0:00:10"]
[BlackClock "0:00:27"]
[Board "119"]

1. e4 {[%clk 0:03:00]}  c5 {[%clk 0:02:59]} 2. Nf3 {[%clk 0:03:00]}  Nc6 {[%clk 0:03:00]} 3. d4 {[%clk 0:03:01]}  cxd4 {[%clk 0:03:01]} 4. Nxd4 {[%clk 0:03:02]}  Nf6 {[%clk 0:03:01]} 5. Nc3 {[%clk 0:03:03]}  d6 {[%clk 0:03:01]} 6. Bg5 {[%clk 0:03:03]}  e6 {[%clk 0:03:01]} 7. Qd2 {[%clk 0:03:00]}  a6 {[%clk 0:03:01]} 8. O-O-O {[%clk 0:02:59]}  Bd7 {[%clk 0:03:01]} 9. f4 {[%clk 0:03:00]}  Be7 {[%clk 0:02:55]} 10. Nf3 {[%clk 0:02:59]}  b5 {[%clk 0:02:55]} 11. e5 {[%clk 0:02:59]}  b4 {[%clk 0:02:55]} 12. exd6 {[%clk 0:01:50]}  bxc3 {[%clk 0:02:54]} 13. Qxc3 {[%clk 0:01:51]}  Bf8 {[%clk 0:02:53]} 14. f5 {[%clk 0:01:51]}  Ne4 {[%clk 0:02:38]} 15. Qe3 {[%clk 0:01:27]}  Nxg5 {[%clk 0:02:30]} 16. Nxg5 {[%clk 0:01:28]}  Qf6 {[%clk 0:02:28]} 17. fxe6 {[%clk 0:01:21]}  fxe6 {[%clk 0:02:26]} 18. Bc4 {[%clk 0:01:17]}  Qe5 {[%clk 0:02:07]} 19. Qd2 {[%clk 0:00:37]}  Bxd6 {[%clk 0:01:43]} 20. Rhe1 {[%clk 0:00:31]}  Qf4 {[%clk 0:01:42]} 21. Nxe6 {[%clk 0:00:29]}  Qxd2+ {[%clk 0:01:28]} 22. Rxd2 {[%clk 0:00:30]}  Be5 {[%clk 0:01:21]} 23. Nc7+ {[%clk 0:00:16]}  Kd8 {[%clk 0:01:14]} 24. Nxa8 {[%clk 0:00:17]}  Bf4 {[%clk 0:01:14]} 25. Rd1 {[%clk 0:00:04]}  Ke7 {[%clk 0:01:07]} 26. Nb6 {[%clk 0:00:04]}  Bxd2+ {[%clk 0:01:00]} 27. Rxd2 {[%clk 0:00:05]}  Be6 {[%clk 0:00:51]} 28. Re2 {[%clk 0:00:04]}  Nd4 {[%clk 0:00:51]} 29. Re4 {[%clk 0:00:03]}  Rd8 {[%clk 0:00:43]} 30. Nd5+ {[%clk 0:00:04]}  Kf8 {[%clk 0:00:39]} 31. Rxd4 {[%clk 0:00:04]}  g6 {[%clk 0:00:36]} 32. Rf4+ {[%clk 0:00:03]}  Kg7 {[%clk 0:00:36]} 33. Ne3 {[%clk 0:00:03]}  Bc8 {[%clk 0:00:27]} 34. Rf7+ {[%clk 0:00:03]}  Kh6 {[%clk 0:00:27]} 35. b3 {[%clk 0:00:02]}  Re8 {[%clk 0:00:27]} 36. Kd2 {[%clk 0:00:02]}  a5 {[%clk 0:00:27]} 37. Kc3 {[%clk 0:00:02]}  Rxe3+ {[%clk 0:00:27]} 38. Kd4 {[%clk 0:00:03]}  Re8 {[%clk 0:00:25]} 39. Rc7 {[%clk 0:00:03]}  Bf5 {[%clk 0:00:24]} 40. Kc3 {[%clk 0:00:03]}  Re1 {[%clk 0:00:23]} 41. Rc5 {[%clk 0:00:03]}  Rc1 {[%clk 0:00:20]} 42. Bd3 {[%clk 0:00:02]}  Bxd3 {[%clk 0:00:20]} 43. Kxd3 {[%clk 0:00:03]}  a4 {[%clk 0:00:19]} 44. bxa4 {[%clk 0:00:03]}  Ra1 {[%clk 0:00:20]} 45. a5 {[%clk 0:00:02]}  Rxa2 {[%clk 0:00:21]} 46. Kd4 {[%clk 0:00:02]}  Ra4+ {[%clk 0:00:18]} 47. Kd5 {[%clk 0:00:02]}  Kg7 {[%clk 0:00:18]} 48. Kc6 {[%clk 0:00:03]}  Kf6 {[%clk 0:00:18]} 49. Kb5 {[%clk 0:00:03]}  Ra2 {[%clk 0:00:18]} 50. a6 {[%clk 0:00:04]}  g5 {[%clk 0:00:19]} 51. Kb6 {[%clk 0:00:03]}  Rb2+ {[%clk 0:00:19]} 52. Kc7 {[%clk 0:00:02]}  Ra2 {[%clk 0:00:18]} 53. Kb7 {[%clk 0:00:02]}  Rb2+ {[%clk 0:00:18]} 54. Ka8 {[%clk 0:00:02]}  Ke7 {[%clk 0:00:17]} 55. a7 {[%clk 0:00:03]}  Kd6 {[%clk 0:00:18]} 56. Rc8 {[%clk 0:00:02]}  Kd7 {[%clk 0:00:19]} 57. Rb8 {[%clk 0:00:03]}  Ra2 {[%clk 0:00:18]} 58. Rb7+ {[%clk 0:00:03]}  Kc6 {[%clk 0:00:18]} 59. Kb8 {[%clk 0:00:03]}  Rxc2 {[%clk 0:00:19]} 60. a8=Q {[%clk 0:00:03]}  Kd6 {[%clk 0:00:20]} 61. Rb6+ {[%clk 0:00:03]}  Ke7 {[%clk 0:00:21]} 62. Qb7+ {[%clk 0:00:03]}  Kf8 {[%clk 0:00:20]} 63. Rc6 {[%clk 0:00:04]}  Re2 {[%clk 0:00:20]} 64. Rc8+ {[%clk 0:00:04]}  Re8 {[%clk 0:00:21]} 65. Qb4+ {[%clk 0:00:04]}  Kf7 {[%clk 0:00:21]} 66. Qc4+ {[%clk 0:00:05]}  Ke7 {[%clk 0:00:21]} 67. Qe4+ {[%clk 0:00:05]}  Kd7 {[%clk 0:00:22]} 68. Qxe8+ {[%clk 0:00:06]}  Kd6 {[%clk 0:00:23]} 69. Rc6+ {[%clk 0:00:06]}  Kd5 {[%clk 0:00:23]} 70. Qe6+ {[%clk 0:00:07]}  Kd4 {[%clk 0:00:24]} 71. Rc4+ {[%clk 0:00:08]}  Kd3 {[%clk 0:00:25]} 72. Qe4+ {[%clk 0:00:09]}  Kd2 {[%clk 0:00:26]} 73. Rc2+ {[%clk 0:00:10]}  Kd1 {[%clk 0:00:27]} 74. Qe2# {[%clk 0:00:10]} 1-0


[Site "https://www.chess.com"]

[Event "Titled Tuesday Blitz November 14 Early 2023"]
[White "Erzhanov, Arman"]
[Black "Lopez Del Alamo, Antonio"]
[WhiteFideId "4138821"]
[BlackFideId "2227339"]
[WhiteElo "2504"]
[BlackElo "2339"]
[Result "1-0"]
[Round "8"]
[TimeControl "180+1"]
[Date "2023.11.14"]
[WhiteClock "0:00:45"]
[BlackClock "0:00:08"]
[Board "120"]

1. e4 {[%clk 0:02:59]}  c5 {[%clk 0:02:59]} 2. Nf3 {[%clk 0:02:59]}  e6 {[%clk 0:02:58]} 3. b3 {[%clk 0:02:58]}  Nc6 {[%clk 0:02:57]} 4. Bb5 {[%clk 0:02:57]}  Nge7 {[%clk 0:02:53]} 5. Bb2 {[%clk 0:02:57]}  a6 {[%clk 0:02:52]} 6. Bxc6 {[%clk 0:02:58]}  Nxc6 {[%clk 0:02:52]} 7. O-O {[%clk 0:02:59]}  d6 {[%clk 0:02:47]} 8. d4 {[%clk 0:02:59]}  cxd4 {[%clk 0:02:46]} 9. Nxd4 {[%clk 0:03:00]}  Qf6 {[%clk 0:02:47]} 10. c4 {[%clk 0:02:45]}  Bd7 {[%clk 0:02:46]} 11. Qd2 {[%clk 0:02:44]}  Qg6 {[%clk 0:02:44]} 12. Nc3 {[%clk 0:02:39]}  Be7 {[%clk 0:02:41]} 13. Nf3 {[%clk 0:02:31]}  Rd8 {[%clk 0:02:32]} 14. Rad1 {[%clk 0:02:29]}  O-O {[%clk 0:02:27]} 15. Rfe1 {[%clk 0:02:28]}  Ne5 {[%clk 0:02:24]} 16. Nd4 {[%clk 0:02:24]}  b5 {[%clk 0:01:59]} 17. f4 {[%clk 0:02:18]}  Nc6 {[%clk 0:01:50]} 18. cxb5 {[%clk 0:02:16]}  Nxd4 {[%clk 0:01:46]} 19. Qxd4 {[%clk 0:02:16]}  axb5 {[%clk 0:01:46]} 20. f5 {[%clk 0:02:15]}  Qg5 {[%clk 0:01:31]} 21. Re3 {[%clk 0:02:01]}  Bf6 {[%clk 0:01:26]} 22. Qd3 {[%clk 0:01:57]}  Be5 {[%clk 0:01:19]} 23. Rf1 {[%clk 0:01:46]}  Bc6 {[%clk 0:01:13]} 24. Nd1 {[%clk 0:01:34]}  Qh4 {[%clk 0:00:54]} 25. g3 {[%clk 0:01:25]}  Qh5 {[%clk 0:00:47]} 26. Qc2 {[%clk 0:01:17]}  Bxb2 {[%clk 0:00:37]} 27. Qxb2 {[%clk 0:01:15]}  exf5 {[%clk 0:00:35]} 28. Rxf5 {[%clk 0:01:08]}  Qxd1+ {[%clk 0:00:33]} 29. Rf1 {[%clk 0:01:08]}  Qg4 {[%clk 0:00:30]} 30. Rf4 {[%clk 0:01:07]}  Qg5 {[%clk 0:00:29]} 31. Qc3 {[%clk 0:01:05]}  Qc5 {[%clk 0:00:25]} 32. Qd2 {[%clk 0:01:04]}  Rfe8 {[%clk 0:00:24]} 33. Kg2 {[%clk 0:01:03]}  f5 {[%clk 0:00:23]} 34. Rc3 {[%clk 0:00:58]}  Qb6 {[%clk 0:00:20]} 35. Qc1 {[%clk 0:00:45]}  Bxe4+ {[%clk 0:00:19]} 36. Kh3 {[%clk 0:00:45]}  Qf2 {[%clk 0:00:08]} 37. Rxf2 {[%clk 0:00:45]} 1-0


[Site "https://www.chess.com"]